bitfinex-derivatives/quotes_ETHF0:USTF0_20250520
["timestamp","ask_amount","ask_price","bid_price","bid_amount"]
[1747737026508,0.7951,2514.8,2514.7,2.78334]
[1747737026714,0.7951,2514.8,2514.7,1.98827]
[1747737026913,0.7951,2514.8,2514.7,2.78336]
[1747737026914,2.1554,2514.8,2514.7,2.78336]
[1747737027114,0.79512,2514.6,2514.5,1.90745723]
[1747737027313,0.79512,2514.6,2514.5,10.28145723]
[1747737027618,5.991345,2514.6,2514.5,8.97645723]
[1747737027807,5.991345,2514.6,2514.5,8.37995723]
[1747737028013,5.991345,2514.6,2514.5,0.00595723]
[1747737028818,7.351645,2514.6,2514.5,0.00595723]
[1747737029411,5.196225,2514.6,2514.5,0.00595723]
[1747737029611,4.00292,2514.6,2514.5,2.78953223]
[1747737030617,4.00292,2514.6,2514.5,1.99438223]
[1747737031522,4.00292,2514.6,2514.5,2.78953223]
[1747737031723,5.991345,2514.6,2514.5,0.00595723]
[1747737032313,7.345945,2514.6,2514.5,0.00595723]
[1747737039324,12.345945,2514.6,2514.5,0.00595723]
[1747737039520,0.79515,2514.5,2514.4,0.5965]
[1747737039718,3.97616,2514.3,2513.8,2.1879]
[1747737040020,0.7955,2513.4,2513.3,0.64623371]
[1747737040216,4.0033,2513.4,2513.3,0.64623371]
[1747737040414,5.99267501,2513.4,2513.3,0.64623371]
[1747737040617,5.99267501,2513.4,2513.3,0.48599926]
[1747737040818,5.19717501,2513.4,2513.3,1.28152926]
[1747737041018,0.00595723,2513.6,2513.5,0.79547]
[1747737041427,0.00595723,2513.6,2513.5,4.11529]
[1747737042115,0.00595723,2513.6,2513.5,12.49129]
[1747737044328,3.2078,2513.7,2513.6,0.7980888]
[1747737044630,4.00322,2513.7,2513.6,9.1750888]
[1747737044823,5.19694001,2513.7,2513.6,0.7980888]
[1747737045024,5.99234001,2513.7,2513.6,0.0026488]
[1747737045731,5.99234001,2513.7,2513.6,0.7980888]
[1747737046131,3.2078,2513.7,2513.6,0.7980888]
[1747737046333,3.2078,2513.7,2513.6,2.7872288]
[1747737046529,0.00595723,2513.9,2513.8,0.79537]
[1747737046831,0.00595723,2513.9,2513.8,9.17237]
[1747737047127,0.00595723,2513.9,2513.8,11.16135]
[1747737049430,4.00909723,2513.9,2513.8,10.36598]
[1747737049736,4.00909723,2513.9,2513.8,11.16135]
[1747737049936,3.21375723,2513.9,2513.8,11.16135]
[1747737050235,4.00909723,2513.9,2513.8,11.16135]
[1747737051230,5.99807724,2513.9,2513.8,9.17237]
[1747737051732,3.21375723,2513.9,2513.8,9.17237]
[1747737051938,3.21375723,2513.9,2513.8,11.16135]
[1747737052138,5.20273724,2513.9,2513.8,9.17237]
[1747737052437,3.21375723,2513.9,2513.8,11.16135]
[1747737053044,3.21375723,2513.9,2513.8,9.17237]
[1747737053350,3.21375723,2513.9,2513.8,11.16135]
[1747737053851,4.00301,2514.3,2514.2,0.79525]
[1747737054238,7.184535,2514.3,2513.9,1.2598]
[1747737054438,0.79531,2514.0,2513.9,2.05514]
[1747737054638,2.4606,2514.2,2513.9,1.2598]
[1747737054845,0.7953,2514.1,2514.0,0.79531]
[1747737055041,0.79528,2514.2,2514.1,0.79525]
[1747737055447,3.21375723,2514.3,2513.9,1.2598]
[1747737055748,4.00311,2514.0,2513.9,1.2598]
[1747737056149,5.99201,2514.0,2513.9,1.2598]
[1747737056951,0.7954,2513.7,2513.6,0.24588785]
[1747737057151,4.0032,2513.7,2513.6,0.24588785]
[1747737057342,5.99234001,2513.7,2513.6,0.24588785]
[1747737057748,10.99234001,2513.7,2513.6,7.85e-06]
[1747737058240,11.30193279,2513.7,2513.6,7.85e-06]
[1747737058646,0.79547,2513.5,2513.4,0.60275723]
[1747737059051,7.78477,2513.5,2513.4,0.60275723]
[1747737059751,2.78477,2513.5,2513.4,0.60275723]
[1747737059939,7.78477,2513.5,2513.4,0.60275723]
[1747737060253,2.78477,2513.5,2513.4,0.60275723]
[1747737060447,3.2078,2513.7,2513.4,2.59205723]
[1747737060752,0.79547,2513.5,2513.4,0.60275723]
[1747737061145,2.78477,2513.5,2513.4,0.60275723]
[1747737062253,0.79547,2513.5,2513.4,2.59205723]
[1747737062552,2.78477,2513.5,2513.4,0.60275723]
[1747737065046,7.78477,2513.5,2513.4,0.60275723]
[1747737065549,2.78477,2513.5,2513.4,0.60275723]
[1747737065851,4.15777,2513.5,2513.4,0.60275723]
[1747737067849,9.15777,2513.5,2513.4,0.60275723]
[1747737068550,4.15777,2513.5,2513.4,0.60275723]
[1747737072055,1.16024246,2513.7,2513.6,0.79544]
[1747737072451,1.16024246,2513.7,2513.6,7.78458]
[1747737072653,1.56269576,2513.8,2513.7,0.7954]
[1747737072854,3.31061872,2514.0,2513.9,0.79534]
[1747737073054,3.31061872,2514.0,2513.9,9.16034]
[1747737073354,3.31061872,2514.0,2513.9,16.14924]
[1747737074859,0.97097995,2514.0,2513.9,16.14924]
[1747737075663,3.21375723,2514.3,2514.2,0.79525]
[1747737076155,3.21375723,2514.3,2514.2,2.783915]
[1747737076561,3.21375723,2514.3,2514.2,4.047615]
[1747737076859,5.20242223,2514.3,2513.7,8.68817268]
[1747737077162,0.7953,2514.1,2514.0,1.2637]
[1747737077363,0.7953,2514.1,2514.0,2.05901]
[1747737077554,0.7953,2514.1,2514.0,1.2637]
[1747737077858,0.7953,2514.1,2514.0,2.05901]
[1747737078161,2.784125,2514.1,2514.0,1.2637]
[1747737078367,0.79534,2513.9,2513.8,1.065]
[1747737078558,3.2078,2513.9,2513.8,3.19137]
[1747737078758,3.2078,2513.9,2513.8,5.18035]
[1747737078959,3.2078,2513.9,2513.8,10.18035]
[1747737079458,3.2078,2513.9,2513.8,5.18035]
[1747737079663,0.00595723,2514.3,2514.2,0.79525]
[1747737079864,0.80116723,2514.3,2514.2,0.79525]
[1747737080056,0.80116723,2514.3,2514.2,2.783915]
[1747737081360,0.00595723,2514.3,2514.2,2.783915]
[1747737082161,0.79507,2514.8,2514.7,0.79509]
[1747737082366,1.44636511,2514.9,2514.8,0.79506]
[1747737082752,2.63950512,2514.9,2514.8,0.79506]
[1747737083062,0.65131511,2514.9,2514.8,2.78325]
[1747737083461,0.65131511,2514.9,2514.8,9.13315]
[1747737083766,0.65131511,2515.0,2514.9,0.79502]
[1747737083960,0.65131511,2515.0,2514.9,2.14492]
[1747737084266,0.65131511,2515.0,2514.9,12.48903]
[1747737086662,0.00595723,2515.1,2515.0,0.79499]
[1747737086866,0.00595723,2515.1,2515.0,3.14499]
[1747737087064,0.00595723,2515.1,2515.0,5.13301999]
[1747737087563,0.00595723,2515.1,2515.0,5.72941999]
[1747737089256,0.00595723,2515.1,2515.0,4.93442999]
[1747737089457,5.99674723,2515.1,2515.0,0.5964]
[1747737089663,5.99674723,2515.1,2514.8,1.6969]
[1747737089664,0.79502,2514.9,2514.8,0.88578]
[1747737089868,0.79506,2514.8,2514.7,0.00595723]
[1747737090166,5.27076,2514.8,2514.7,0.00595723]
[1747737090366,2.78333,2514.8,2514.7,0.80104723]
[1747737090763,0.79506,2514.8,2514.7,0.80104723]
[1747737091169,2.78333,2514.8,2514.7,0.80104723]
[1747737091562,0.79506,2514.8,2514.7,0.80104723]
[1747737092671,4.00286,2514.8,2514.7,2.08114723]
[1747737092871,5.99113,2514.8,2514.7,1.28605723]
[1747737093068,5.99113,2514.8,2514.7,0.00595723]
[1747737093265,10.99113,2514.8,2514.7,0.00595723]
[1747737094471,5.99113,2514.8,2514.7,0.00595723]
[1747737102276,4.00286,2514.8,2514.7,0.00595723]
[1747737102869,5.99113,2514.8,2514.7,0.00595723]
[1747737107678,0.79534,2513.9,2513.8,0.32417268]
[1747737107987,4.00314,2513.9,2513.8,0.32417268]
[1747737108190,4.00314,2513.9,2513.8,2.31315268]
[1747737108375,3.2078,2513.9,2513.8,4.38312268]
[1747737108777,4.00314,2513.9,2513.8,4.38312268]
[1747737109295,3.2078,2513.9,2513.8,4.38312268]
[1747737109488,4.00306,2514.2,2514.1,0.79528]
[1747737109878,4.00306,2514.2,2514.1,2.784025]
[1747737110079,5.99180501,2514.2,2514.1,0.79528]
[1747737110279,4.00306,2514.2,2514.1,1.988745]
[1747737110581,0.79528,2514.1,2514.0,0.0991]
[1747737110780,3.15488,2514.1,2514.0,0.0991]
[1747737111083,5.143705,2514.1,2514.0,0.0991]
[1747737112289,0.79563,2513.0,2512.9,9.00123371]
[1747737112489,3.2078,2513.0,2512.9,13.07238871]
[1747737113086,4.00343,2513.0,2512.9,13.07238871]
[1747737113790,4.00343,2513.0,2512.9,12.426155]
[1747737114092,3.2078,2513.0,2512.9,12.426155]
[1747737114890,3.2078,2513.0,2512.9,17.426155]
[1747737115285,4.00343,2513.0,2512.9,11.630495]
[1747737115791,4.00343,2513.0,2512.9,10.43646]
[1747737116185,4.00343,2513.0,2512.9,1.2858]
[1747737116586,4.00343,2513.0,2512.9,3.275495]
[1747737117290,4.00343,2513.0,2512.9,1.989695]
[1747737117496,0.79569,2512.8,2512.7,8.35395723]
[1747737117995,0.79569,2512.8,2512.7,10.34380723]
[1747737118186,0.79569,2512.8,2512.7,8.35395723]
[1747737118591,2.78554,2512.8,2512.7,0.00595723]
[1747737119090,4.00344,2513.0,2512.7,1.99580723]
[1747737119282,3.2078,2513.0,2512.9,0.79566]
[1747737119987,4.00343,2513.0,2512.9,2.18726]
[1747737120191,3.2078,2513.0,2512.9,2.18726]
[1747737120394,4.00343,2513.0,2512.9,2.18726]
[1747737120891,3.2078,2513.0,2512.9,4.176955]
[1747737121581,3.2078,2513.0,2512.9,17.526955]
[1747737121786,0.00595723,2513.2,2512.9,17.526955]
[1747737121787,0.00595723,2513.2,2513.1,0.79559]
[1747737121987,1.55814208,2513.5,2513.4,0.7955]
[1747737122189,2.99095388,2513.7,2513.6,0.79544]
[1747737122590,0.65131511,2513.7,2513.6,2.78458]
[1747737123090,0.00596932,2513.9,2513.6,7.78458]
[1747737123298,0.00596932,2513.9,2513.8,4.00317]
[1747737123697,0.00596932,2513.9,2513.8,11.13435]
[1747737124392,1.99494933,2513.9,2513.7,4.00319]
[1747737124597,3.27691932,2513.9,2513.8,0.79537]
[1747737124795,2.48156932,2513.9,2513.8,0.79537]
[1747737124997,1.99494933,2513.9,2513.8,0.79537]
[1747737125297,0.00596932,2513.9,2513.8,0.79537]
[1747737125498,1.99494933,2513.9,2513.8,0.79537]
[1747737125699,0.00596932,2513.9,2513.8,0.79537]
[1747737126192,1.99494933,2513.9,2513.8,0.79537]
[1747737126394,2.79028933,2513.9,2513.8,0.79537]
[1747737126592,1.99494933,2513.9,2513.8,0.79537]
[1747737126797,3.34744933,2513.9,2513.5,2.4757]
[1747737126996,0.79539,2513.8,2513.7,0.79538]
[1747737127304,0.79549,2513.5,2513.4,0.79547]
[1747737127496,2.94943,2513.7,2513.6,0.79544]
[1747737127693,0.80132932,2513.9,2513.8,0.79537]
[1747737127897,0.7954,2513.8,2513.7,0.79538]
[1747737128098,0.79544,2513.6,2513.5,2.11904]
[1747737128305,0.79544,2513.6,2513.5,4.10826]
[1747737128502,0.79544,2513.6,2513.3,8.349]
[1747737128503,3.97783,2513.6,2513.3,8.349]
[1747737128797,0.79556,2513.2,2513.1,0.79559]
[1747737129103,0.79555,2513.3,2513.2,0.79553]
[1747737129496,2.785005,2513.3,2513.2,0.79553]
[1747737130706,1.989455,2513.3,2512.8,2.1917]
[1747737130895,1.3129,2513.2,2513.1,0.79556]
[1747737131092,0.79562,2513.1,2513.0,0.7956]
[1747737131303,2.10848,2513.2,2513.1,0.79559]
[1747737131907,2.10848,2513.2,2513.1,2.785125]
[1747737132502,0.79555,2513.3,2513.2,0.79553]
[1747737132800,5.31618,2513.5,2513.4,0.7955]
[1747737133195,5.31618,2513.5,2513.4,2.7848]
[1747737133602,5.31618,2513.5,2513.4,1.9893]
[1747737133891,0.79553,2513.3,2513.2,2.05906]
[1747737134092,8.35,2513.3,2512.7,0.00595723]
[1747737134297,0.79569,2512.8,2512.7,0.00595723]
[1747737134599,1.98899,2513.1,2512.7,0.00595723]
[1747737134600,0.79568,2512.9,2512.8,0.79567]
[1747737134801,1.2788,2512.9,2512.7,1.37415723]
[1747737134997,0.79569,2512.8,2512.7,0.00595723]
[1747737135403,4.06434,2512.8,2512.7,0.00595723]
[1747737136600,0.79582,2512.4,2512.3,0.24285766]
[1747737136807,4.00362,2512.4,2512.3,0.24285766]
[1747737136995,0.79587,2512.3,2512.2,0.79587]
[1747737137299,0.79591,2512.1,2512.0,1.03878766]
[1747737137603,0.79591,2512.1,2512.0,0.24285766]
[1747737137802,1.3903,2512.2,2512.1,0.79591]
[1747737138003,1.3903,2512.2,2512.1,2.11161]
[1747737138404,1.3903,2512.2,2512.1,4.101935]
[1747737138700,2.18618,2512.2,2512.1,2.786235]
[1747737138899,1.3903,2512.2,2512.1,2.786235]
[1747737139099,3.380625,2512.2,2512.1,2.11471]
[1747737139300,2.18618,2512.2,2512.1,2.11471]
[1747737139705,1.3903,2512.2,2512.1,2.11471]
[1747737139908,1.11126932,2512.3,2512.2,0.79588]
[1747737139909,0.00596932,2512.3,2512.2,0.79588]
[1747737140307,0.7959,2512.2,2512.1,0.79589]
[1747737140609,0.80182932,2512.3,2512.2,0.79588]
[1747737140910,0.7959,2512.2,2512.1,0.79589]
[1747737141101,1.3933,2512.2,2512.1,0.79589]
[1747737141305,0.00596932,2512.3,2512.2,0.79588]
[1747737141606,0.00596932,2512.3,2512.2,2.11468]
[1747737141807,0.00596932,2512.3,2512.2,9.10493]
[1747737142203,0.00596932,2512.3,2512.2,4.10493]
[1747737142408,0.00596932,2512.3,2512.2,9.10493]
[1747737143705,3.2078,2513.0,2512.6,1.98938]
[1747737144015,1.2569,2513.2,2513.1,0.79559]
[1747737144412,2.05246,2513.2,2513.1,2.785125]
[1747737144611,0.79563,2513.1,2513.0,0.79561]
[1747737145014,2.06753,2513.1,2513.0,2.785225]
[1747737145212,0.79563,2513.0,2512.9,2.13214]
[1747737145713,0.79563,2513.0,2512.9,4.121835]
[1747737146211,2.06751,2513.1,2513.0,0.79563]
[1747737146716,0.79563,2513.0,2512.9,0.79564]
[1747737146906,2.06753,2513.0,2512.9,0.79564]
[1747737147211,2.06753,2513.0,2512.9,2.785335]
[1747737147404,2.16776932,2513.3,2512.9,1.989695]
[1747737147604,3.43966932,2513.3,2513.2,0.79556]
[1747737148010,4.23519932,2513.3,2513.2,0.79556]
[1747737148410,4.23519932,2513.3,2513.2,2.785015]
[1747737148611,4.23519932,2513.3,2513.2,0.79556]
[1747737148815,10.42912432,2513.3,2512.6,0.24285766]
[1747737149014,0.79566,2513.0,2512.9,0.79564]
[1747737149215,0.7957,2512.9,2512.8,0.79567]
[1747737149406,2.0739,2512.9,2512.8,0.79567]
[1747737149606,2.0739,2512.9,2512.8,2.78544499]
[1747737150113,2.0739,2512.9,2512.8,1.98977499]
[1747737150310,0.79577,2512.6,2512.5,0.79577]
[1747737150615,0.79578,2512.5,2512.4,0.24285766]
[1747737150814,2.07398,2512.5,2512.4,0.24285766]
[1747737151017,4.06407,2512.5,2512.4,0.24285766]
[1747737151510,4.06407,2512.5,2512.4,1.56795766]
[1747737151716,4.06407,2512.5,2512.4,2.36377766]
[1747737151922,2.07398,2512.5,2512.4,4.35386766]
[1747737152111,1.2782,2512.5,2512.4,4.11101]
[1747737152310,2.07398,2512.5,2512.4,4.11101]
[1747737152511,0.79576,2512.6,2512.5,0.79575]
[1747737152712,0.79576,2512.6,2512.5,1.99000999]
[1747737153012,2.07316,2512.6,2512.5,1.99000999]
[1747737153310,1.2774,2512.6,2512.3,1.3251]
[1747737153510,0.79588,2512.2,2512.1,10.3123]
[1747737153722,0.79588,2512.2,2512.1,11.6374]
[1747737153908,0.79588,2512.2,2512.1,13.627725]
[1747737154617,0.79588,2512.2,2512.1,12.831825]
[1747737154817,0.79588,2512.2,2512.1,13.627735]
[1747737155021,0.79588,2512.2,2512.1,11.63741]
[1747737155321,4.105305,2512.2,2512.1,1.3251]
[1747737155915,0.79591,2512.1,2512.0,0.79592]
[1747737156420,0.79591,2512.1,2512.0,4.073125]
[1747737156721,0.79591,2512.1,2512.0,2.08272]
[1747737157515,3.2078,2512.1,2511.8,0.00596932]
[1747737157824,2.90307,2512.3,2512.2,0.79588]
[1747737158322,4.89332,2512.3,2512.2,0.79588]
[1747737158822,0.79591,2512.2,2512.1,0.79589]
[1747737159115,0.79591,2512.1,2512.0,2.17712]
[1747737159323,0.79591,2512.1,2512.0,1.3812]
[1747737159629,0.79594,2512.0,2511.9,9.27197]
[1747737159824,2.15684,2512.0,2511.9,9.27197]
[1747737160121,0.79592,2512.1,2512.0,0.7959]
[1747737160423,0.79591,2512.1,2512.0,1.3775]
[1747737160623,0.79594,2512.0,2511.9,8.476]
[1747737160819,2.15424,2512.0,2511.9,8.476]
[1747737161025,0.79597,2511.9,2511.8,0.00596932]
[1747737161325,2.15427,2511.9,2511.8,0.00596932]
[1747737161625,4.14483501,2511.9,2511.8,0.00596932]
[1747737161926,2.15427,2511.9,2511.8,0.00596932]
[1747737162123,2.15427,2511.9,2511.8,1.38346932]
[1747737162635,4.14483501,2511.9,2511.8,1.38346932]
[1747737162818,4.14483501,2511.9,2511.8,0.00596932]
[1747737163717,9.14483501,2511.9,2511.8,9.32e-06]
[1747737164915,1.99026,2511.5,2511.2,0.32384771]
[1747737165123,4.00396,2511.3,2511.2,0.32384771]
[1747737165523,0.79623,2511.1,2511.0,0.00520825]
[1747737165724,0.79623,2511.1,2511.0,1.26130825]
[1747737165924,2.78743,2511.1,2511.0,1.26130825]
[1747737166227,2.78743,2511.1,2511.0,0.00520825]
[1747737167216,0.00596932,2511.3,2511.0,0.00520825]
[1747737167422,0.79623,2511.1,2511.0,0.00520825]
[1747737167923,0.79623,2511.1,2511.0,2.79265824]
[1747737168124,2.78743,2511.1,2511.0,0.00520825]
[1747737168327,0.79623,2511.1,2511.0,1.99640824]
[1747737168528,1.9912,2511.1,2511.0,1.30520825]
[1747737168722,3.21376932,2511.3,2511.2,0.7962]
[1747737168930,0.00596932,2511.3,2511.2,4.004]
[1747737169131,0.00596932,2511.3,2511.2,2.78724]
[1747737169425,2.79316932,2511.3,2511.2,1.99104]
[1747737169731,2.79316932,2511.3,2511.0,0.00520825]
[1747737169732,0.79623,2511.1,2511.0,0.00520825]
[1747737170323,2.78743,2511.1,2511.0,0.00520825]
[1747737170531,4.15153,2511.1,2511.0,0.00520825]
[1747737170826,9.15153,2511.1,2511.0,0.00520825]
[1747737171221,4.15153,2511.1,2511.0,0.00520825]
[1747737171725,2.16033,2511.1,2511.0,0.00520825]
[1747737171929,4.15153,2511.1,2511.0,0.00520825]
[1747737173124,2.78743,2511.1,2511.0,0.00520825]
[1747737173329,3.21376932,2511.3,2511.0,0.00520825]
[1747737173631,0.79623,2511.1,2511.0,0.00520825]
[1747737174026,2.78743,2511.1,2511.0,0.00520825]
[1747737174333,5.18053,2511.1,2511.0,0.00520825]
[1747737175928,10.18053,2511.1,2511.0,0.00520825]
[1747737176529,10.18053,2511.1,2510.1,0.59198209]
[1747737176530,3.98132,2511.0,2510.1,0.59198209]
[1747737176839,0.79651,2510.2,2510.1,0.59198209]
[1747737177219,2.788425,2510.2,2510.1,0.59198209]
[1747737177623,4.104825,2510.2,2510.1,0.59198209]
[1747737178734,3.2078,2510.4,2510.1,2.58389708]
[1747737178927,0.7965,2510.3,2510.2,3.2122]
[1747737179122,3.267215,2510.7,2510.1,0.59198209]
[1747737179435,5.27981,2510.2,2510.1,0.59198209]
[1747737179930,6.475215,2510.2,2510.1,0.59198209]
[1747737180126,10.635,2510.6,2510.1,0.59198209]
[1747737180127,3.2078,2510.6,2510.1,0.59198209]
[1747737180326,1.2755,2510.5,2510.2,1.3565]
[1747737180527,1.2755,2510.5,2510.4,0.79645]
[1747737180727,0.79645,2510.4,2510.3,1.0592]
[1747737180930,0.79645,2510.4,2510.3,2.4157]
[1747737181128,6.47414,2510.8,2510.3,3.21218]
[1747737181431,6.47414,2510.8,2510.3,2.4157]
[1747737181432,0.79645,2510.4,2510.3,2.4157]
[1747737181831,2.07189,2510.6,2510.5,0.79642]
[1747737182132,0.79642,2510.5,2510.4,3.2078]
[1747737182327,0.79642,2510.6,2510.5,0.7964]
[1747737182522,0.79633,2510.8,2510.7,0.79633]
[1747737182718,3.2078,2511.1,2510.6,1.39]
[1747737182920,1.38,2511.2,2510.6,1.39]
[1747737183125,3.2078,2511.1,2510.7,1.0455]
[1747737183420,0.79622,2511.2,2511.1,0.7962]
[1747737183623,0.79626,2511.1,2511.0,0.79625]
[1747737183820,0.79626,2511.1,2511.0,1.39]
[1747737184033,0.79626,2511.1,2511.0,3.38119999]
[1747737184231,0.79626,2511.1,2510.3,1.99119]
[1747737184232,5.199,2511.1,2510.3,1.99119]
[1747737184436,4.00412,2510.8,2510.7,2.16995]
[1747737184734,5.4214,2511.2,2510.7,1.3736]
[1747737184922,5.4214,2511.2,2510.8,1.3736]
[1747737184923,6.27992,2511.2,2510.8,1.3736]
[1747737185227,0.79629,2510.9,2510.8,1.3736]
[1747737185626,0.79629,2510.9,2510.8,4.16127999]
[1747737185820,0.79629,2510.9,2510.8,4.16125999]
[1747737186436,0.79629,2510.9,2510.8,3.36495999]
[1747737187134,4.00409,2510.9,2510.8,3.36495999]
[1747737187342,1.99091,2510.7,2510.3,3.2078]
[1747737187638,4.337,2510.6,2510.2,0.79649]
[1747737187825,3.2078,2510.6,2510.5,0.79642]
[1747737188025,0.79648,2510.4,2510.2,3.360115]
[1747737188337,0.79645,2510.4,2510.3,1.3684]
[1747737188731,0.79645,2510.4,2510.3,3.360155]
[1747737189238,0.79645,2510.4,2510.3,1.3684]
[1747737189535,0.79645,2510.4,2510.3,2.16488]
[1747737189831,9.7732,2511.1,2510.4,1.99113]
[1747737189832,3.2078,2511.0,2510.4,1.99113]
[1747737190037,0.79638,2510.7,2510.6,0.79636]
[1747737190535,0.79635,2510.7,2510.6,3.920475]
[1747737190736,0.79635,2510.7,2510.6,2.787875]
[1747737191433,0.79634,2510.8,2510.7,0.79632]
[1747737191633,0.79632,2510.8,2510.7,1.355]
[1747737191934,2.787755,2510.8,2510.7,1.355]
[1747737192339,0.79639,2510.6,2510.5,1.1028]
[1747737192635,0.79648,2510.3,2510.2,2.47534771]
[1747737192831,1.0259,2510.7,2510.2,1.67884771]
[1747737193037,0.79644,2510.5,2510.4,0.79641]
[1747737193336,0.79637,2510.7,2510.6,0.79635]
[1747737193539,4.00411,2510.9,2510.8,0.79632]
[1747737193842,0.79636,2510.8,2510.7,0.79633]
[1747737194333,3.53636,2510.8,2510.7,0.79633]
[1747737194536,3.53636,2510.8,2510.7,4.13096499]
[1747737194736,3.53636,2510.8,2510.7,2.13953]
[1747737195132,0.79636,2510.8,2510.7,1.3432]
[1747737195936,0.79636,2510.8,2510.6,1.1119]
[1747737195937,5.199235,2510.8,2510.4,8.645]
[1747737196141,0.79645,2510.4,2510.3,1.66704771]
[1747737196635,0.79645,2510.4,2510.3,3.65880271]
[1747737196834,0.79645,2510.4,2510.3,2.46352771]
[1747737197234,0.79641,2510.6,2510.5,0.79642]
[1747737197533,1.83806,2510.7,2510.6,0.79639]
[1747737197728,0.79644,2510.5,2510.4,0.7964]
[1747737197929,3.2078,2510.8,2510.4,1.2772]
[1747737198130,3.2078,2510.8,2510.3,3.982835]
[1747737198131,0.79648,2510.3,2510.2,2.1593]
[1747737198539,0.79651,2510.2,2510.1,0.59198209]
[1747737198839,1.84671,2510.2,2510.1,0.59198209]
[1747737199236,4.58671,2510.2,2510.1,0.59198209]
[1747737199645,4.58671,2510.2,2510.1,2.58389708]
[1747737199841,4.58671,2510.2,2510.1,3.38043708]
[1747737200638,3.53651,2510.2,2510.1,2.58389708]
[1747737200837,8.736225,2510.2,2510.1,0.59198209]
[1747737201239,10.048625,2510.2,2510.1,0.59198209]
[1747737202648,10.048625,2510.2,2510.1,1.38852209]
[1747737202947,2.74,2510.2,2510.1,8.38043708]
[1747737203140,0.79645,2510.5,2510.4,0.79643]
[1747737203444,0.79648,2510.3,2510.2,9.7082]
[1747737203647,0.79646,2510.4,2510.3,0.79645]
[1747737203846,1.3163,2510.5,2510.4,0.79642]
[1747737203847,0.79643,2510.5,2510.4,0.79642]
[1747737204241,0.79643,2510.5,2510.4,4.179795]
[1747737205043,4.5241,2510.9,2510.4,5.374495]
[1747737205247,0.79638,2510.7,2510.6,0.79637]
[1747737205444,4.5241,2510.9,2510.5,1.99105]
[1747737205643,4.00412,2510.9,2510.8,0.79632]
[1747737206041,0.79632,2510.8,2510.7,1.84824]
[1747737206549,0.79632,2510.8,2510.7,3.83967499]
[1747737206853,0.7963,2510.9,2510.8,0.79629]
[1747737207042,0.7963,2510.9,2510.8,3.11259]
[1747737207238,5.48766275,2511.2,2510.8,4.30765999]
[1747737207450,0.79625,2511.1,2511.0,0.79623]
[1747737207841,0.79625,2511.1,2511.0,2.78742999]
[1747737208151,3.53625,2511.1,2511.0,2.78742999]
[1747737208347,3.53625,2511.1,2511.0,0.79623]
[1747737208544,2.74,2511.1,2511.0,2.78742999]
[1747737209348,0.7962,2511.2,2511.1,0.79623]
[1747737209736,0.80214932,2511.3,2511.2,0.79619]
[1747737209939,0.80214932,2511.3,2511.2,2.16099]
[1747737210140,3.54214932,2511.3,2511.2,4.15203]
[1747737210640,2.74596932,2511.3,2511.2,5.25193]
[1747737210840,3.54212932,2511.3,2511.2,4.45574]
[1747737211345,0.80212932,2511.3,2511.2,4.45574]
[1747737211851,0.80212932,2511.3,2511.2,5.25194]
[1747737212053,0.80212932,2511.3,2511.2,1.99104]
[1747737212250,3.54212932,2511.3,2511.2,1.99104]
[1747737213253,0.79623,2511.1,2511.0,2.11756]
[1747737213451,2.15902,2511.2,2511.1,0.79623]
[1747737213758,3.54215932,2511.3,2511.2,0.7962]
[1747737214151,0.80215932,2511.3,2511.2,2.78724]
[1747737214942,0.80215932,2511.3,2511.2,1.99104]
[1747737215345,0.79623,2511.1,2511.0,1.3213]
[1747737215747,2.78743,2511.1,2511.0,8.858]
[1747737215949,0.79632,2510.8,2510.7,10.52034771]
[1747737216254,0.79632,2510.8,2510.7,11.31669771]
[1747737216560,0.79632,2510.8,2510.7,4.4501327]
[1747737216852,2.07548,2511.0,2510.9,0.79629]
[1747737217155,0.79632,2510.9,2510.8,0.79631]
[1747737217455,0.79632,2510.9,2510.8,2.13482]
[1747737217650,0.79632,2510.9,2510.8,4.12617999]
[1747737217949,2.07547,2511.0,2510.9,0.79629]
[1747737218251,0.79625,2511.1,2511.0,0.79623]
[1747737218554,0.79626,2511.0,2510.9,1.3414]
[1747737218853,0.79626,2511.0,2510.9,4.12888999]
[1747737219050,0.79626,2511.0,2510.9,4.12897]
[1747737219550,0.79632,2510.8,2510.7,1.0705]
[1747737219758,0.79632,2510.8,2510.7,3.20825]
[1747737220056,0.79635,2510.7,2510.6,8.858]
[1747737220243,0.79642,2510.5,2510.4,0.32975527]
[1747737220552,0.79642,2510.5,2510.4,1.12620527]
[1747737220751,0.79641,2510.6,2510.5,0.79639]
[1747737220952,0.79638,2510.7,2510.6,0.79639]
[1747737221146,4.5031,2510.9,2510.6,1.991515]
[1747737221355,0.7963,2511.0,2510.9,0.79626]
[1747737221552,0.79632,2510.9,2510.8,0.79631]
[1747737221752,0.79632,2510.9,2510.8,2.06351]
[1747737221954,0.79632,2510.9,2510.8,4.05486999]
[1747737223255,3.53632,2510.9,2510.8,4.05486999]
[1747737223458,3.53632,2510.9,2510.8,1.99135999]
[1747737223955,2.74,2510.9,2510.8,4.14777999]
[1747737224350,2.09158,2511.0,2510.9,0.79629]
[1747737224544,3.21376932,2511.3,2510.9,1.3601]
[1747737224846,0.79623,2511.2,2511.1,0.7962]
[1747737225154,3.53623,2511.2,2511.1,0.7962]
[1747737225348,3.53623,2511.2,2511.1,2.78732]
[1747737225956,3.53623,2511.2,2511.1,1.99112]
[1747737226149,0.79626,2511.0,2510.9,1.3601]
[1747737226555,0.79626,2511.0,2510.9,3.35138]
[1747737226755,0.79626,2511.0,2510.9,1.3601]
[1747737226954,0.79626,2511.0,2510.9,2.15639]
[1747737227157,3.53626,2511.0,2510.9,2.15639]
[1747737227552,2.74,2511.0,2510.9,4.14767]
[1747737228149,3.53626,2511.0,2510.9,4.14767]
[1747737229157,3.53626,2511.0,2510.9,3.35138]